Cogmind - Beta 12 @@@ ROGUE MODE // 2023.12.06 @ 05:38:25 Player: Kel Result: Self-destructed Performance ------------- Evolutions (1) 500 Regions Visited (3) 600 Robots Destroyed (13) 65 Value Destroyed (398) 398 Prototype IDs (0) 0 Alien Tech Used (0) 0 Bonus (0) 0 TOTAL SCORE: 1563 Bonus ------- None Cogmind --------- Core Integrity 355/400 Matter 224/300 Energy 410/410 System Corruption 0% Temperature Cool (0) Movement Treading (160) Location -9/Materials Parts ------- > --- POWER (1) -------- Light Nuclear Core > --- PROPULSION (2) --- Light Treads > --- UTILITY (3) ------ Small Storage Unit High-capacity Battery Utility Shielding > --- WEAPON (3) ------- (None) > --- INVENTORY (8) ---- Light Treads Light Treads Aluminum Leg Aluminum Leg Targeting Computer Assault Rifle Peak State ------------ > --- POWER ------------ Light Nuclear Core > --- PROPULSION ------- Light Treads Light Treads > --- UTILITY ---------- Small Storage Unit High-capacity Battery Utility Shielding > --- WEAPON ----------- Assault Rifle Assault Rifle Grenade Launcher > --- INVENTORY -------- Light Treads Light Treads Aluminum Leg Aluminum Leg Targeting Computer Assault Rifle [Rating: 11] Favorites ----------- Power Ion Engine Engine Ion Engine Power Core Light Nuclear Core Propulsion Light Treads Treads Light Treads Wheel Compact Wheel Utility Small Storage Unit Storage Small Storage Unit Protection Utility Shielding Weapon Assault Rifle Ballistic Gun Assault Rifle Launcher Grenade Launcher Build | -11 -10 -10 -9 ------- Run | Jun Mat Min Mat Slots Evolved 2 | . . . 2 Power . | . . . . Propulsion . | . . . . Utility 1 | . . . 1 Weapon 1 | . . . 1 Parts Attached 13 | 6 4 . 3 Power 2 | 1 . . 1 Engine 1 | 1 . . . Core 1 | . . . 1 Reactor . | . . . . Propulsion 4 | 2 2 . . Treads 2 | . 2 . . Leg . | . . . . Wheel 2 | 2 . . . Hover . | . . . . Flight . | . . . . Utility 3 | 1 1 . 1 Device . | . . . . Storage 2 | 1 . . 1 Processor . | . . . . Hackware . | . . . . Protection 1 | . 1 . . Artifact . | . . . . Weapon 4 | 2 1 . 1 Energy Gun . | . . . . Energy Cannon . | . . . . Ballistic Gun 3 | 2 1 . . Ballistic Cannon . | . . . . Launcher 1 | . . . 1 Special Weapon . | . . . . Impact Weapon . | . . . . Slashing Weapon . | . . . . Piercing Weapon . | . . . . Special Melee Weapon . | . . . . Unidentified Prototypes . | . . . . Parts Lost 6 | . 1 . 5 Power 1 | . . . 1 Propulsion 2 | . 1 . 1 Utility . | . . . . Weapon 3 | . . . 3 Highest Loss Streak 4 | . 1 . 4 To Critical Strikes . | . . . . Average Slot Usage (%) 97 | . 95 100 95 Engine 12 | . 14 14 3 Treads 20 | . 8 28 21 Wheel 6 | . 17 . . Storage 14 | . 14 14 22 Protection 12 | . 11 14 11 Ballistic Gun 27 | . 28 28 20 Launcher 1 | . . . 9 Naked Turns . | . . . . Heaviest Build 22 | 13 15 15 22 Greatest Support 40 | 3 40 40 40 Greatest Overweight (x) 4 | 4 4 . . Average Overweight (x) . | 2 . . . Largest Inventory Capacity 8 | 8 8 8 8 Average Capacity 7 | 7 8 8 8 Most Carried 8 | 6 8 8 7 Average Carried 7 | 3 7 8 6 Final Capacity 8 | 8 8 8 8 Final Carried 8 | 6 8 8 6 Class Distribution -------------------- 100% | Mutant Dominant Class ---------------- Mutant | -10/Materials Mutant | -10/Mines Mutant | -9/Materials Resources | -11 -10 -10 -9 ----------- Run | Jun Mat Min Mat Matter Collected 503 | 252 195 33 23 Remotely . | . . . . Salvage Created 347 | . 277 44 26 Parts 23 | . 18 3 2 Haulers Intercepted . | . . . . Recyclers Shooed . | . . . . Parts Field Recycled . | . . . . Retrieved Matter . | . . . . Parts Self-Destructed . | . . . . Prevented . | . . . . Kills | -11 -10 -10 -9 ------- Run | Jun Mat Min Mat Combat Hostiles Destroyed 13 | . 6 3 4 Guns 11 | . 6 3 2 AOE 2 | . . . 2 Classes Destroyed 2 | . 1 1 . Swarmer 4 | . . 3 1 Grunt 9 | . 6 . 3 Best Kill Streak 3 | . 2 3 3 Combat Bots Only 3 | . 2 3 3 Max Kills in Single Turn 2 | . 1 2 2 Gunslinging 1 | . . 1 . Exploded 2 | . . . 2 Melee . | . . . . Uniques/NPCs Destroyed . | . . . . Combat | -11 -10 -10 -9 -------- Run | Jun Mat Min Mat Damage Taken 902 | . 382 124 396 Core 178 | . 123 10 45 Absorbed by Shields . | . . . . Redirected to Shielding 11 | . . 5 6 Core Remaining (%) 73 | 100 . 46 . Volleys Fired 36 | . 23 5 8 Largest 3 | . 2 2 3 Hottest 70 | . 40 40 70 Shots Fired 70 | . 46 11 13 Gun 63 | . 46 11 6 Cannon . | . . . . Launcher 7 | . . . 7 Special . | . . . . Kinetic 63 | . 46 11 6 Thermal . | . . . . Explosive 7 | . . . 7 Electromagnetic . | . . . . Robot Hit Streak 13 | . 13 4 4 Robot Miss Streak 3 | . 2 2 3 Penetration Max . | . . . . Secondary Targets 2 | . 1 1 . Max Gunslinging Chain 1 | . 1 1 . Shots Hit Robots 44 | . 33 6 5 Core Hits 30 | . 15 3 12 Critical Kills . | . . . . Critical Parts Destroyed . | . . . . Critical Strikes . | . . . . Melee Attacks . | . . . . Impact . | . . . . Slashing . | . . . . Piercing . | . . . . Sneak Attacks . | . . . . Combat Hostiles . | . . . . Follow-up Attacks . | . . . . Damage Inflicted 981 | . 405 76 500 Guns 508 | . 405 76 27 Cannons . | . . . . Explosions 473 | . . . 473 Melee . | . . . . Ramming . | . . . . Kinetic 508 | . 405 76 27 Thermal . | . . . . Explosive 473 | . . . 473 Electromagnetic . | . . . . Impact . | . . . . Slashing . | . . . . Piercing . | . . . . Highest Corruption 2 | . 2 2 . Average Corruption 2 | . 2 2 . Corruption Purged . | . . . . Corruption Blocked . | . . . . Effects 16 | . 9 7 . Message Errors 4 | . 2 2 . Matter Fused 3 | . 2 1 . Heat Flow Errors 2 | . 1 1 . Data Loss (minor) 1 | . . 1 . Data Loss (major) 2 | . 1 1 . Misfires 2 | . 1 1 . Alerts 1 | . 1 . . Weapon Failures 1 | . 1 . . Overload Shots . | . . . . Overflow Damage 14 | . . . 14 Projectiles . | . . . . Explosions 14 | . . . 14 Melee . | . . . . Knockbacks . | . . . . Impact . | . . . . Kinetic . | . . . . Secondary . | . . . . Self-Inflicted Damage . | . . . . Shots . | . . . . Rammed . | . . . . Targets Rammed . | . . . . Kicked . | . . . . Crushed . | . . . . Highest Temperature 113 | . 113 91 12 Average Temperature 20 | . 19 53 6 Received Heat Transfer 270 | . 204 . 66 Siege Activations . | . . . . Robots Corrupted . | . . . . Combat Hostiles . | . . . . Parts Fried . | . . . . Impact Corruptions . | . . . . Robots Melted . | . . . . Combat Hostiles . | . . . . Parts Melted . | . . . . Heat Transferred . | . . . . Parts Sabotaged . | . . . . Parts Stolen . | . . . . Parts Stripped . | . . . . Power Chain Reactions . | . . . . Missiles Intercepted . | . . . . Alert | -11 -10 -10 -9 ------- Run | Jun Mat Min Mat Peak Influence 166 | . 166 85 112 Initial . | . . . . Average 43 | . 48 45 48 Maximum Alert Level . | . . . . Low Security (%) 100 | 100 100 100 100 Level 1 . | . . . . Level 2 . | . . . . Level 3 . | . . . . Level 4 . | . . . . Level 5 . | . . . . High Security . | . . . . Max Security . | . . . . Squads Dispatched . | . . . . Investigation . | . . . . Extermination . | . . . . Reinforcement . | . . . . Assault . | . . . . Garrison . | . . . . Intercept . | . . . . Searches Triggered . | . . . . Construction Impeded . | . . . . Haulers Reinforced . | . . . . Active Scanning Responses . | . . . . Cargo Convoy Interrupts . | . . . . Stealth | -11 -10 -10 -9 --------- Run | Jun Mat Min Mat Distress Signals 1 | . 1 . . Communications Jammed . | . . . . Distress Signals . | . . . . Times Spotted 30 | . 14 4 12 Peak Tracking Total 8 | . 5 3 8 Tactical Retreats 2 | . 1 1 . Traps | -11 -10 -10 -9 ------- Run | Jun Mat Min Mat Traps Triggered 3 | . 2 . 1 Indirectly . | . . . . Trap Hack Attempts . | . . . . Triggered . | . . . . Disarmed . | . . . . Reprogrammed . | . . . . Reused . | . . . . Traps Extracted . | . . . . Installed . | . . . . Triggered . | . . . . Machines | -11 -10 -10 -9 ---------- Run | Jun Mat Min Mat Machines Disabled . | . . . . Max in Single Turn . | . . . . Machines Repaired . | . . . . Machines Sabotaged . | . . . . Overloaded Fab Kills . | . . . . Hacking | -11 -10 -10 -9 --------- Run | Jun Mat Min Mat Machines Accessed 3 | . 2 . 1 Terminals 2 | . 1 . 1 Fabricators . | . . . . Repair Stations . | . . . . Recycling Units 1 | . 1 . . Scanalyzers . | . . . . Garrison Access . | . . . . Total Hacks 5 | . 3 . 2 Successful 3 | . 3 . . Failed 2 | . . . 2 Catastrophic 2 | . . . 2 Database Lockouts . | . . . . Manual . | . . . . Terminals 4 | . 2 . 2 Fabricators . | . . . . Repair Stations . | . . . . Recycling Units 1 | . 1 . . Scanalyzers . | . . . . Garrison Access . | . . . . Terminal Hacks 2 | . 2 . . Unreport Threat 1 | . 1 . . Locate Traps 1 | . 1 . . Fabricator Hacks . | . . . . Repair Station Hacks . | . . . . Recycling Unit Hacks 1 | . 1 . . Report Inventory 1 | . 1 . . Scanalyzer . | . . . . Garrison Access Hacks . | . . . . Unauthorized Hacks . | . . . . Terminals . | . . . . Fabricators . | . . . . Repair Stations . | . . . . Recycling Units . | . . . . Scanalyzers . | . . . . Garrison Access . | . . . . Data Cores Recovered . | . . . . Used . | . . . . Hacking Detections 1 | . . . 1 Full Trace Events . | . . . . Feedback Events . | . . . . Feedback Blocked . | . . . . Robot Schematics Acquired . | . . . . Robots Built . | . . . . Authchips . | . . . . Time . | . . . . Total Robot Build Rating . | . . . . Part Schematics Acquired . | . . . . Parts Built . | . . . . Authchips . | . . . . Time . | . . . . Total Part Build Rating . | . . . . Parts Repaired . | . . . . Time . | . . . . Parts Recycled . | . . . . Recycled Matter . | . . . . Retrieved Matter . | . . . . Retrieved Components . | . . . . Parts Scanalyzed . | . . . . Part Schematics Acquired . | . . . . Parts Damaged . | . . . . Bothacking | -11 -10 -10 -9 ------------ Run | Jun Mat Min Mat Used RIF Installer . | . . . . Robots Hacked . | . . . . Non-combat . | . . . . Combat . | . . . . Robot Hacks Applied . | . . . . Relay Couplers Released . | . . . . Fabnet Peak Effective % . | . . . . Robots Rewired . | . . . . Allies Hacked . | . . . . Hacks Repelled . | . . . . Allies | -11 -10 -10 -9 -------- Run | Jun Mat Min Mat Total Allies . | . . . . Largest Group . | . . . . Highest-Rated Group . | . . . . Highest-Rated Ally . | . . . . Total Orders . | . . . . Ally Attacks . | . . . . Total Damage . | . . . . Kills . | . . . . Allies Corrupted . | . . . . Allies Melted . | . . . . Intel | -11 -10 -10 -9 ------- Run | Jun Mat Min Mat Robot Analysis Total . | . . . . Derelict Logs Recovered . | . . . . Drone Launches . | . . . . Drone Recoveries . | . . . . Exploration | -11 -10 -10 -9 ------------- Run | Jun Mat Min Mat Turns Passed 1319 | 111 446 621 141 Spaces Moved 731 | 51 249 365 66 Core 72 | 51 21 . . Treads 517 | . 86 365 66 Legs . | . . . . Wheels 142 | . 142 . . Hover . | . . . . Flight . | . . . . Fastest Speed 50 | 50 90 160 160 Average Speed 151 | 188 128 160 160 Slowest Speed 250 | 250 250 160 160 Overloaded Moves . | . . . . Propulsion Burnouts . | . . . . Robots Hopped . | . . . . Cave-ins Triggered . | . . . . Exploration Rate (%) 28 | 5 33 66 11 Regions Visited 3 Branch Regions 1 Pre-discovered Areas . | . . . . Known Exits Taken . | . . . . Unknown Exits Taken 3 | 1 1 1 . Scrap Searched . | . . . . Spaces Dug . | . . . . Terrain Destroyed 26 | . . . 26 Melee . | . . . . Projectile . | . . . . AOE 26 | . . . 26 Terrain Rammed . | . . . . Walls Destroyed . | . . . . Machines Disabled . | . . . . Actions | -11 -10 -10 -9 --------- Run | Jun Mat Min Mat Total 875 | 64 330 392 89 Wait 84 | 2 48 23 11 Move 728 | 50 248 364 66 Hop . | . . . . Pick Up 11 | 6 4 . 1 Fast Attach 9 | 6 3 . . Attach 3 | . . . 3 Detach . | . . . . Swap 1 | . 1 . . Drop 3 | . 3 . . Fire 36 | . 23 5 8 Melee . | . . . . Ram . | . . . . Kick . | . . . . Crush . | . . . . Escape Stasis . | . . . . Rewire . | . . . . Trap . | . . . . Miscellaneous . | . . . . Route ------- -11/Junkyard -10/Materials -10/Mines (discovered 2 exits: *Mat x2) -9/Materials History --------- Turn | Location | Event 5 | -11/Junkyard | Discovered new exit (range 15) 112 | -11/Junkyard | Entered Materials 317 | -10/Materials | Build established: Mutant 337 | -10/Materials | Discovered new exit (range 12) 558 | -10/Materials | Entered Mines 629 | -10/Mines | Core integrity fell below 50% 841 | -10/Mines | Discovered new exit (range 4) 1134 | -10/Mines | Discovered new exit (range 7) 1179 | -10/Mines | Entered Materials 1179 | -9/Materials | Evolved 2 slots: Utility x1, Weapon x1 1320 | -9/Materials | Self-destructed Last Messages --------------- 01281_ A bubble of electromagnetic force engulfs the area. 01282_ U-05 Engineer lays Concrete. 01283_ Acquired 8 matter. 01284_ U-05 Engineer lays Concrete. 01296_ K-01 Serf collects debris. 01296_ U-05 Engineer lays Concrete. 01299_ Connecting with Terminal... 01299_ Current location identified: Materials 01303_ K-01 Serf collects debris. 01306_ R-06 Scavenger collects Corrupted Wheel. 01308_ S-10 Pest destroyed. 01308_ Destroyed Lgt. Ion Engine. 01310_ Grenade Launcher destroyed. 01311_ U-05 Engineer lays Concrete. 01312_ Assault Rifle destroyed. 01312_ U-05 Engineer lays Concrete. 01318_ K-01 Serf collects debris. 01319_ Lgt. Treads destroyed. 01319_ U-05 Engineer lays Concrete. 01319_ Assault Rifle destroyed. Map ----- +----------------------------------------------------+ | ?????????????????????????????????????????????????? | | ?????????????????????????????????????????????????? | | ?????????????????????????????????????????????????? | | ?????????????????????????????????????????????????? | | ?????????????????????????????????????????????????? | | ???????????????????????????"?????????????????????? | | ?????????????????????" ???? ????????????????????? | | ?????????????????????? ??? ????????????????????? | | ?????????????????????? ??# ##### ??????????????? | | ???????????????? ????? ?? # ????????????? | | ???????????????? ???? ?? ????????????? | | ????????????????#/#####k## k ???????????? | | ????????????????# s ????????????? | | ????????????????# u ??????????????? | | ????????????????# ???????????????? | | ????????????????? s ????????????????? | | ?????????????????? s s [ ??????????????????? | | ???????????????????? s s ???????????????????? | | ?????????????????????# ????????????????????? | | ??????????????????????#s s#?????????????????????? | | ??????????????????????# r #?????????????????????? | | ??????????????????????# ###???????????????????? | | ??????????????????????# T#???????????????????? | | ??????????????????????# ""#???????????????????? | | ??????????????????????# ###???????????????????? | | ??????????????????????# @ #?????????????????????? | | ??????????????????????# #?????????????????????? | | ??????????????????????# #?????????????????????? | | ??????????????????????# #?????????????????????? | | ??????????????????????# #?????????????????????? | | ??????????????????????# #?????????????????????? | | ??????????????????????# #?????????????????????? | | ??????????????????????# #?????????????????????? | | ??????????????????????# #?????????????????????? | | ??????????????????????# #?????????????????????? | | ???????????????######## #?????????????????????? | | ???????????????# """ + #?????????????????????? | | ???????????????# """ # #?????????????????????? | | ???????????????# """ # #?????????????????????? | | ???????????????# # ##########????????????? | | ???????????????# ## ! #????????????? | | ???????????????# # # !! #????????????? | | ???????????????###### # #????????????? | | ????????????????????# # ## #????????????? | | ????????????????????# # ## #????????????? | | ????????????????????# # ### #????????????? | | ????????????????????### ######+####???????????? | | ??????????????????????# #???????????? | | ??????????????????????# #???????????? | | ??????????????????????# #???????????? | +----------------------------------------------------+ Best States ------------- Heat Dissipation 28 Energy Generation 14 Energy Capacity 500 Matter Stores 300 Matter Capacity 300 Sight Range 16 Terrain Scan Density 10 Utility Shielding 33 Evasion (%) 50 Recoil Reduction 2 Item Schematics ----------------- None Robot Schematics ------------------ None Fabricated ------------ Nothing Alien Tech Used ----------------- None Achievements -------------- Everything Is Under Control Challenges ------------ None Game ------ Seed TrapTargetingBuckler Manual? 0 Play Time 00:10:55 Cumulative 12.7 hours Start 2023.12.06 @ 05:17:13 End 2023.12.06 @ 05:38:25 Sessions 1 Manual Loads 0 Difficulty Rogue Special Mode None Game No. 23 Rogue 23 Adventurer 0 Explorer 0 Win Type - Total 0 Types 0/0/0/0/0/0/0/0/0 Lore% 16 Gallery% 18 Achievement% 15 Wizard Run 0 Options --------- ASCII 0 Keyboard 1 Movement Numpad Keybinds 0 Fullscreen 1 Font 18/Terminus Map View 76x50 Tactical HUD 1 Map Filters NONE Filters NONE Steam 1 RUN: 9b99d9b5-a7c8-45c4-aa46-2f079ad0516d